[Event "Titled Tuesday Blitz August 22 Early 2023"]
[White "Lei, Tingjie"]
[Black "Grischuk, Alexander"]
[WhiteFideId "8605114"]
[BlackFideId "4126025"]
[WhiteElo "2750"]
[BlackElo "3039"]
[Result "1/2-1/2"]
[Round "3"]
[TimeControl "180+1"]
[Date "2023.08.22"]
[WhiteClock "0:00:15"]
[BlackClock "0:00:09"]
[Board "9"]

1. e4 {[%clk 0:03:00]}  e6 {[%clk 0:02:58]} 2. d4 {[%clk 0:03:00]}  d5 {[%clk 0:02:58]} 3. exd5 {[%clk 0:03:00]}  exd5 {[%clk 0:02:58]} 4. Nf3 {[%clk 0:03:00]}  Nc6 {[%clk 0:02:59]} 5. Bb5 {[%clk 0:02:56]}  Bd6 {[%clk 0:02:58]} 6. O-O {[%clk 0:02:54]}  Ne7 {[%clk 0:02:57]} 7. Re1 {[%clk 0:02:53]}  O-O {[%clk 0:02:56]} 8. h3 {[%clk 0:02:49]}  Bf5 {[%clk 0:02:46]} 9. c3 {[%clk 0:02:46]}  a6 {[%clk 0:02:42]} 10. Bd3 {[%clk 0:02:43]}  Qd7 {[%clk 0:02:41]} 11. Bxf5 {[%clk 0:02:32]}  Nxf5 {[%clk 0:02:22]} 12. Nbd2 {[%clk 0:02:32]}  Rae8 {[%clk 0:02:16]} 13. Rxe8 {[%clk 0:02:23]}  Rxe8 {[%clk 0:02:16]} 14. Nf1 {[%clk 0:02:24]}  Nd8 {[%clk 0:02:02]} 15. Qd3 {[%clk 0:02:15]}  f6 {[%clk 0:01:57]} 16. Bd2 {[%clk 0:02:13]}  c6 {[%clk 0:01:52]} 17. b3 {[%clk 0:02:04]}  Nf7 {[%clk 0:01:46]} 18. Re1 {[%clk 0:01:57]}  Rxe1 {[%clk 0:01:45]} 19. Bxe1 {[%clk 0:01:56]}  Bc7 {[%clk 0:01:41]} 20. Ne3 {[%clk 0:01:47]}  Nxe3 {[%clk 0:01:38]} 21. Qxe3 {[%clk 0:01:46]}  Nd6 {[%clk 0:01:32]} 22. Qd3 {[%clk 0:01:37]}  Qe6 {[%clk 0:01:27]} 23. Kf1 {[%clk 0:01:34]}  g5 {[%clk 0:01:13]} 24. Qe2 {[%clk 0:01:26]}  Kf7 {[%clk 0:01:12]} 25. Qxe6+ {[%clk 0:01:25]}  Kxe6 {[%clk 0:01:13]} 26. Ke2 {[%clk 0:01:25]}  h5 {[%clk 0:01:11]} 27. Kd3 {[%clk 0:01:24]}  Nf5 {[%clk 0:00:50]} 28. g3 {[%clk 0:00:55]}  Ne7 {[%clk 0:00:38]} 29. Bd2 {[%clk 0:00:52]}  Ng6 {[%clk 0:00:34]} 30. a4 {[%clk 0:00:46]}  Kf5 {[%clk 0:00:28]} 31. Ke2 {[%clk 0:00:41]}  g4 {[%clk 0:00:19]} 32. hxg4+ {[%clk 0:00:41]}  Kxg4 {[%clk 0:00:20]} 33. Nh2+ {[%clk 0:00:38]}  Kh3 {[%clk 0:00:19]} 34. Nf3 {[%clk 0:00:39]}  Kg4 {[%clk 0:00:18]} 35. Nh2+ {[%clk 0:00:38]}  Kh3 {[%clk 0:00:18]} 36. Nf3 {[%clk 0:00:39]}  f5 {[%clk 0:00:11]} 37. Ng5+ {[%clk 0:00:34]}  Kg4 {[%clk 0:00:12]} 38. Ne6 {[%clk 0:00:31]}  Bd6 {[%clk 0:00:11]} 39. Nd8 {[%clk 0:00:30]}  b5 {[%clk 0:00:11]} 40. Nxc6 {[%clk 0:00:28]}  f4 {[%clk 0:00:11]} 41. axb5 {[%clk 0:00:20]}  axb5 {[%clk 0:00:12]} 42. gxf4 {[%clk 0:00:16]}  Bxf4 {[%clk 0:00:11]} 43. Bxf4 {[%clk 0:00:15]}  Nxf4+ {[%clk 0:00:10]} 44. Ke3 {[%clk 0:00:15]}  Ng2+ {[%clk 0:00:10]} 45. Ke2 {[%clk 0:00:14]}  Nf4+ {[%clk 0:00:11]} 46. Ke3 {[%clk 0:00:15]}  Ng2+ {[%clk 0:00:09]} 47. Ke2 {[%clk 0:00:15]}  Nf4+ {[%clk 0:00:09]} 1/2-1/2


[Site "https://www.chess.com"]

[Event "Titled Tuesday Blitz August 22 Early 2023"]
[White "Martinez Alcantara, Jose Eduardo"]
[Black "Weetik, Vjacheslav"]
[WhiteFideId "3805662"]
[BlackFideId "4153472"]
[WhiteElo "3034"]
[BlackElo "2750"]
[Result "1-0"]
[Round "3"]
[TimeControl "180+1"]
[Date "2023.08.22"]
[WhiteClock "0:00:04"]
[BlackClock "0:00:02"]
[Board "10"]

1. e4 {[%clk 0:03:00]}  e5 {[%clk 0:02:58]} 2. Nf3 {[%clk 0:03:01]}  Nc6 {[%clk 0:02:58]} 3. Nc3 {[%clk 0:03:02]}  Nf6 {[%clk 0:02:56]} 4. h3 {[%clk 0:03:02]}  g6 {[%clk 0:02:53]} 5. Bc4 {[%clk 0:03:02]}  Bg7 {[%clk 0:02:50]} 6. d3 {[%clk 0:03:00]}  d6 {[%clk 0:02:46]} 7. a3 {[%clk 0:03:01]}  O-O {[%clk 0:02:45]} 8. O-O {[%clk 0:03:01]}  Be6 {[%clk 0:02:34]} 9. Bxe6 {[%clk 0:03:01]}  fxe6 {[%clk 0:02:34]} 10. Ne2 {[%clk 0:03:02]}  Nh5 {[%clk 0:02:31]} 11. Ng3 {[%clk 0:03:02]}  Nf4 {[%clk 0:02:29]} 12. c3 {[%clk 0:03:03]}  h6 {[%clk 0:02:21]} 13. b4 {[%clk 0:03:02]}  Qe8 {[%clk 0:02:11]} 14. Be3 {[%clk 0:02:52]}  g5 {[%clk 0:02:10]} 15. d4 {[%clk 0:02:50]}  Qg6 {[%clk 0:02:05]} 16. b5 {[%clk 0:02:44]}  Na5 {[%clk 0:01:53]} 17. dxe5 {[%clk 0:02:20]}  dxe5 {[%clk 0:01:54]} 18. Qa4 {[%clk 0:02:19]}  b6 {[%clk 0:01:54]} 19. Nh2 {[%clk 0:02:19]}  h5 {[%clk 0:01:52]} 20. Rfd1 {[%clk 0:02:18]}  Rf7 {[%clk 0:01:48]} 21. Rd2 {[%clk 0:02:13]}  Raf8 {[%clk 0:01:47]} 22. Rad1 {[%clk 0:02:14]}  Bh6 {[%clk 0:01:37]} 23. Rd8 {[%clk 0:02:05]}  g4 {[%clk 0:01:33]} 24. hxg4 {[%clk 0:02:03]}  h4 {[%clk 0:01:25]} 25. Bxf4 {[%clk 0:01:30]}  Bxf4 {[%clk 0:01:25]} 26. Ngf1 {[%clk 0:01:31]}  Bxh2+ {[%clk 0:01:19]} 27. Nxh2 {[%clk 0:01:32]}  Rxf2 {[%clk 0:01:19]} 28. Qb4 {[%clk 0:01:06]}  c5 {[%clk 0:00:59]} 29. bxc6 {[%clk 0:01:07]}  Nxc6 {[%clk 0:00:59]} 30. Rxf8+ {[%clk 0:01:07]}  Rxf8 {[%clk 0:01:00]} 31. Qc4 {[%clk 0:01:08]}  Na5 {[%clk 0:00:55]} 32. Qe2 {[%clk 0:00:57]}  Rf4 {[%clk 0:00:55]} 33. Rd8+ {[%clk 0:00:56]}  Kg7 {[%clk 0:00:51]} 34. Rd7+ {[%clk 0:00:41]}  Kh6 {[%clk 0:00:42]} 35. Qe1 {[%clk 0:00:28]}  Qf6 {[%clk 0:00:33]} 36. Qe2 {[%clk 0:00:19]}  a6 {[%clk 0:00:26]} 37. Rd6 {[%clk 0:00:20]}  b5 {[%clk 0:00:24]} 38. Rxa6 {[%clk 0:00:20]}  Nc4 {[%clk 0:00:24]} 39. a4 {[%clk 0:00:19]}  Qg6 {[%clk 0:00:20]} 40. axb5 {[%clk 0:00:13]}  Rxe4 {[%clk 0:00:20]} 41. Qf2 {[%clk 0:00:13]}  Rf4 {[%clk 0:00:18]} 42. Qxh4+ {[%clk 0:00:14]}  Kg7 {[%clk 0:00:18]} 43. Ra7+ {[%clk 0:00:14]}  Rf7 {[%clk 0:00:19]} 44. Rxf7+ {[%clk 0:00:13]}  Kxf7 {[%clk 0:00:19]} 45. Qf2+ {[%clk 0:00:11]}  Ke8 {[%clk 0:00:20]} 46. Nf3 {[%clk 0:00:06]}  Qxg4 {[%clk 0:00:13]} 47. Qc5 {[%clk 0:00:03]}  Qe4 {[%clk 0:00:12]} 48. Qc8+ {[%clk 0:00:02]}  Ke7 {[%clk 0:00:11]} 49. Qc7+ {[%clk 0:00:03]}  Kf6 {[%clk 0:00:12]} 50. Qd8+ {[%clk 0:00:03]}  Kg7 {[%clk 0:00:12]} 51. Qe7+ {[%clk 0:00:03]}  Kh8 {[%clk 0:00:10]} 52. Qf8+ {[%clk 0:00:03]}  Kh7 {[%clk 0:00:02]} 53. Ng5+ {[%clk 0:00:04]} 1-0


[Site "https://www.chess.com"]

[Event "Titled Tuesday Blitz August 22 Early 2023"]
[White "Leiva, Gianmarco"]
[Black "Bluebaum, Matthias"]
[WhiteFideId "3804399"]
[BlackFideId "24651516"]
[WhiteElo "2731"]
[BlackElo "3024"]
[Result "1/2-1/2"]
[Round "3"]
[TimeControl "180+1"]
[Date "2023.08.22"]
[WhiteClock "0:00:04"]
[BlackClock "0:00:46"]
[Board "11"]

1. e4 {[%clk 0:02:51]}  e6 {[%clk 0:03:00]} 2. Qe2 {[%clk 0:02:50]}  Be7 {[%clk 0:02:59]} 3. Nf3 {[%clk 0:02:48]}  d5 {[%clk 0:03:00]} 4. d3 {[%clk 0:02:48]}  Nf6 {[%clk 0:03:00]} 5. g3 {[%clk 0:02:48]}  c5 {[%clk 0:02:59]} 6. Bg2 {[%clk 0:02:49]}  Nc6 {[%clk 0:03:00]} 7. O-O {[%clk 0:02:49]}  O-O {[%clk 0:03:00]} 8. Nbd2 {[%clk 0:02:50]}  a5 {[%clk 0:03:01]} 9. Re1 {[%clk 0:02:50]}  a4 {[%clk 0:03:01]} 10. a3 {[%clk 0:02:46]}  h6 {[%clk 0:03:01]} 11. e5 {[%clk 0:02:42]}  Nh7 {[%clk 0:03:01]} 12. h4 {[%clk 0:02:42]}  f5 {[%clk 0:02:58]} 13. exf6 {[%clk 0:02:23]}  Nxf6 {[%clk 0:02:57]} 14. c4 {[%clk 0:02:18]}  Bd6 {[%clk 0:02:56]} 15. Nb1 {[%clk 0:02:18]}  dxc4 {[%clk 0:02:45]} 16. dxc4 {[%clk 0:02:18]}  e5 {[%clk 0:02:45]} 17. Nc3 {[%clk 0:02:11]}  Bg4 {[%clk 0:02:45]} 18. Qd3 {[%clk 0:02:09]}  Nd4 {[%clk 0:02:44]} 19. Nxd4 {[%clk 0:02:05]}  exd4 {[%clk 0:02:43]} 20. Nd5 {[%clk 0:02:04]}  Nxd5 {[%clk 0:02:42]} 21. Bxd5+ {[%clk 0:02:04]}  Kh8 {[%clk 0:02:43]} 22. Qg6 {[%clk 0:01:21]}  Qf6 {[%clk 0:02:27]} 23. Qxf6 {[%clk 0:01:17]}  Rxf6 {[%clk 0:02:28]} 24. Bd2 {[%clk 0:00:31]}  Raf8 {[%clk 0:02:26]} 25. f4 {[%clk 0:00:32]}  b6 {[%clk 0:01:55]} 26. Kg2 {[%clk 0:00:22]}  g5 {[%clk 0:01:48]} 27. hxg5 {[%clk 0:00:22]}  hxg5 {[%clk 0:01:49]} 28. Rh1+ {[%clk 0:00:23]}  Kg7 {[%clk 0:01:49]} 29. Raf1 {[%clk 0:00:23]}  Re8 {[%clk 0:01:40]} 30. Re1 {[%clk 0:00:23]}  Rxe1 {[%clk 0:01:38]} 31. Rxe1 {[%clk 0:00:23]}  gxf4 {[%clk 0:01:37]} 32. Bxf4 {[%clk 0:00:22]}  Bxf4 {[%clk 0:01:34]} 33. gxf4 {[%clk 0:00:23]}  d3 {[%clk 0:01:35]} 34. Bf3 {[%clk 0:00:12]}  Rxf4 {[%clk 0:01:35]} 35. Bxg4 {[%clk 0:00:10]}  Rxg4+ {[%clk 0:01:36]} 36. Kf3 {[%clk 0:00:10]}  Rxc4 {[%clk 0:01:36]} 37. Ke3 {[%clk 0:00:03]}  Rd4 {[%clk 0:01:36]} 38. Kd2 {[%clk 0:00:03]}  Kf6 {[%clk 0:01:35]} 39. Re8 {[%clk 0:00:03]}  c4 {[%clk 0:01:30]} 40. Rb8 {[%clk 0:00:03]}  Rd6 {[%clk 0:01:29]} 41. Rc8 {[%clk 0:00:02]}  b5 {[%clk 0:01:26]} 42. Rc5 {[%clk 0:00:03]}  Rb6 {[%clk 0:01:24]} 43. Rh5 {[%clk 0:00:03]}  Ke7 {[%clk 0:01:25]} 44. Rg5 {[%clk 0:00:03]}  Kd8 {[%clk 0:01:25]} 45. Rh5 {[%clk 0:00:03]}  Kc7 {[%clk 0:01:26]} 46. Rh7+ {[%clk 0:00:04]}  Kb8 {[%clk 0:01:26]} 47. Rh8+ {[%clk 0:00:05]}  Ka7 {[%clk 0:01:27]} 48. Rh5 {[%clk 0:00:05]}  Ka6 {[%clk 0:01:27]} 49. Kc3 {[%clk 0:00:05]}  Rd6 {[%clk 0:01:27]} 50. Rh2 {[%clk 0:00:05]}  Re6 {[%clk 0:01:27]} 51. Kd2 {[%clk 0:00:05]}  Ka5 {[%clk 0:01:27]} 52. Rg2 {[%clk 0:00:03]}  Rf6 {[%clk 0:01:24]} 53. Rh2 {[%clk 0:00:04]}  Rf1 {[%clk 0:01:24]} 54. Rg2 {[%clk 0:00:02]}  Rb1 {[%clk 0:01:25]} 55. Ke3 {[%clk 0:00:02]}  Rc1 {[%clk 0:01:24]} 56. Rh2 {[%clk 0:00:02]}  Rc2 {[%clk 0:01:25]} 57. Rxc2 {[%clk 0:00:02]}  dxc2 {[%clk 0:01:26]} 58. Kd2 {[%clk 0:00:03]}  Kb6 {[%clk 0:01:13]} 59. Kxc2 {[%clk 0:00:03]}  Kc6 {[%clk 0:01:14]} 60. Kc1 {[%clk 0:00:02]}  Kd5 {[%clk 0:01:14]} 61. Kd1 {[%clk 0:00:02]}  Ke4 {[%clk 0:01:07]} 62. Ke2 {[%clk 0:00:02]}  b4 {[%clk 0:01:03]} 63. Kd2 {[%clk 0:00:01]}  bxa3 {[%clk 0:00:55]} 64. bxa3 {[%clk 0:00:01]}  Kd4 {[%clk 0:00:55]} 65. Kc2 {[%clk 0:00:01]}  c3 {[%clk 0:00:56]} 66. Kc1 {[%clk 0:00:02]}  Kd5 {[%clk 0:00:52]} 67. Kd1 {[%clk 0:00:02]}  Kc5 {[%clk 0:00:53]} 68. Kc1 {[%clk 0:00:02]}  Kb5 {[%clk 0:00:54]} 69. Kb1 {[%clk 0:00:03]}  Kc4 {[%clk 0:00:55]} 70. Kc2 {[%clk 0:00:03]}  Kd4 {[%clk 0:00:53]} 71. Kc1 {[%clk 0:00:04]}  Kd3 {[%clk 0:00:52]} 72. Kd1 {[%clk 0:00:04]}  Ke4 {[%clk 0:00:47]} 73. Kc2 {[%clk 0:00:04]}  Kd4 {[%clk 0:00:46]} 1/2-1/2


[Site "https://www.chess.com"]

[Event "Titled Tuesday Blitz August 22 Early 2023"]
[White "Matinian, Nikita"]
[Black "Van Foreest, Jorden"]
[WhiteFideId "24129100"]
[BlackFideId "1039784"]
[WhiteElo "2720"]
[BlackElo "3004"]
[Result "0-1"]
[Round "3"]
[TimeControl "180+1"]
[Date "2023.08.22"]
[WhiteClock "0:00:00"]
[BlackClock "0:00:36"]
[Board "14"]

1. e4 {[%clk 0:03:00]}  g6 {[%clk 0:02:57]} 2. d4 {[%clk 0:03:00]}  Bg7 {[%clk 0:02:57]} 3. Nc3 {[%clk 0:03:01]}  d6 {[%clk 0:02:57]} 4. Be3 {[%clk 0:03:01]}  a6 {[%clk 0:02:54]} 5. g4 {[%clk 0:03:01]}  Nd7 {[%clk 0:02:49]} 6. h4 {[%clk 0:02:58]}  h6 {[%clk 0:02:45]} 7. h5 {[%clk 0:02:48]}  g5 {[%clk 0:02:45]} 8. Nge2 {[%clk 0:02:44]}  b5 {[%clk 0:02:43]} 9. Ng3 {[%clk 0:02:43]}  e6 {[%clk 0:02:43]} 10. Qd2 {[%clk 0:02:26]}  Nb6 {[%clk 0:02:42]} 11. b3 {[%clk 0:02:15]}  Nf6 {[%clk 0:02:40]} 12. f3 {[%clk 0:02:13]}  Bb7 {[%clk 0:02:37]} 13. O-O-O {[%clk 0:02:13]}  Nfd7 {[%clk 0:02:34]} 14. f4 {[%clk 0:02:10]}  gxf4 {[%clk 0:02:27]} 15. Bxf4 {[%clk 0:02:11]}  c5 {[%clk 0:02:20]} 16. Bxd6 {[%clk 0:01:57]}  Bxd4 {[%clk 0:01:54]} 17. Nce2 {[%clk 0:01:15]}  Be5 {[%clk 0:01:51]} 18. Bg2 {[%clk 0:01:01]}  Qg5 {[%clk 0:01:44]} 19. Kb1 {[%clk 0:00:44]}  Qxd2 {[%clk 0:01:42]} 20. Rxd2 {[%clk 0:00:45]}  Bxd6 {[%clk 0:01:29]} 21. Rxd6 {[%clk 0:00:46]}  Ke7 {[%clk 0:01:30]} 22. Rhd1 {[%clk 0:00:47]}  Rad8 {[%clk 0:01:30]} 23. Kc1 {[%clk 0:00:15]}  Nc8 {[%clk 0:01:30]} 24. R6d2 {[%clk 0:00:14]}  Rhg8 {[%clk 0:01:18]} 25. Bh3 {[%clk 0:00:14]}  Bc6 {[%clk 0:01:13]} 26. Ng1 {[%clk 0:00:14]}  Ne5 {[%clk 0:01:03]} 27. Rxd8 {[%clk 0:00:13]}  Rxd8 {[%clk 0:01:04]} 28. Rxd8 {[%clk 0:00:14]}  Kxd8 {[%clk 0:01:05]} 29. Kd2 {[%clk 0:00:12]}  Nd6 {[%clk 0:01:04]} 30. Ke3 {[%clk 0:00:13]}  Ke7 {[%clk 0:01:04]} 31. Nf3 {[%clk 0:00:10]}  Nxf3 {[%clk 0:01:00]} 32. Kxf3 {[%clk 0:00:11]}  Kf6 {[%clk 0:00:59]} 33. Kf4 {[%clk 0:00:11]}  e5+ {[%clk 0:01:00]} 34. Ke3 {[%clk 0:00:11]}  Kg5 {[%clk 0:01:00]} 35. Kf3 {[%clk 0:00:11]}  b4 {[%clk 0:00:57]} 36. Bf1 {[%clk 0:00:09]}  a5 {[%clk 0:00:53]} 37. Ba6 {[%clk 0:00:08]}  Bd7 {[%clk 0:00:53]} 38. Nf5 {[%clk 0:00:07]}  Bxf5 {[%clk 0:00:53]} 39. exf5 {[%clk 0:00:08]}  f6 {[%clk 0:00:50]} 40. Bd3 {[%clk 0:00:07]}  Kh4 {[%clk 0:00:49]} 41. Ba6 {[%clk 0:00:04]}  Nf7 {[%clk 0:00:44]} 42. Be2 {[%clk 0:00:04]}  Ng5+ {[%clk 0:00:44]} 43. Ke3 {[%clk 0:00:05]}  Kg3 {[%clk 0:00:45]} 44. Kd3 {[%clk 0:00:05]}  Kf2 {[%clk 0:00:44]} 45. Bd1 {[%clk 0:00:05]}  e4+ {[%clk 0:00:45]} 46. Kd2 {[%clk 0:00:03]}  Nh3 {[%clk 0:00:38]} 47. a4 {[%clk 0:00:02]}  bxa3 {[%clk 0:00:37]} 48. Kc3 {[%clk 0:00:00]}  Ke1 {[%clk 0:00:36]} 0-1


[Site "https://www.chess.com"]

[Event "Titled Tuesday Blitz August 22 Early 2023"]
[White "Tabatabaei, M. Amin"]
[Black "Shoker, Samy"]
[WhiteFideId "12521213"]
[BlackFideId "627143"]
[WhiteElo "2998"]
[BlackElo "2715"]
[Result "1-0"]
[Round "3"]
[TimeControl "180+1"]
[Date "2023.08.22"]
[WhiteClock "0:00:14"]
[BlackClock "0:00:00"]
[Board "15"]

1. Nf3 {[%clk 0:03:00]}  Nf6 {[%clk 0:02:58]} 2. c4 {[%clk 0:03:01]}  d6 {[%clk 0:02:57]} 3. d4 {[%clk 0:03:00]}  g6 {[%clk 0:02:56]} 4. Nc3 {[%clk 0:03:01]}  Bf5 {[%clk 0:02:57]} 5. Qb3 {[%clk 0:02:59]}  b6 {[%clk 0:02:56]} 6. g3 {[%clk 0:02:59]}  Nc6 {[%clk 0:02:56]} 7. Bg2 {[%clk 0:02:59]}  Bg7 {[%clk 0:02:49]} 8. O-O {[%clk 0:02:58]}  O-O {[%clk 0:02:48]} 9. Nh4 {[%clk 0:02:41]}  Bd7 {[%clk 0:02:32]} 10. Qd1 {[%clk 0:02:40]}  e5 {[%clk 0:02:32]} 11. d5 {[%clk 0:02:40]}  Na5 {[%clk 0:02:23]} 12. Qd3 {[%clk 0:02:36]}  Nb7 {[%clk 0:02:03]} 13. e4 {[%clk 0:02:34]}  Nc5 {[%clk 0:02:02]} 14. Qc2 {[%clk 0:02:34]}  a5 {[%clk 0:02:03]} 15. b3 {[%clk 0:02:33]}  Nh5 {[%clk 0:02:02]} 16. Qe2 {[%clk 0:02:23]}  Nf4 {[%clk 0:01:59]} 17. Qc2 {[%clk 0:02:12]}  Nxg2 {[%clk 0:01:56]} 18. Nxg2 {[%clk 0:02:13]}  f5 {[%clk 0:01:56]} 19. f3 {[%clk 0:02:12]}  Qe7 {[%clk 0:01:48]} 20. Be3 {[%clk 0:02:12]}  Rf7 {[%clk 0:01:48]} 21. a3 {[%clk 0:02:04]}  fxe4 {[%clk 0:01:40]} 22. fxe4 {[%clk 0:01:56]}  Rxf1+ {[%clk 0:01:20]} 23. Rxf1 {[%clk 0:01:57]}  Bh3 {[%clk 0:01:16]} 24. b4 {[%clk 0:01:50]}  axb4 {[%clk 0:01:16]} 25. axb4 {[%clk 0:01:51]}  Nd7 {[%clk 0:01:17]} 26. Nb5 {[%clk 0:01:41]}  Nf6 {[%clk 0:01:17]} 27. Bg5 {[%clk 0:01:40]}  h6 {[%clk 0:01:17]} 28. Bxf6 {[%clk 0:01:41]}  Bxf6 {[%clk 0:01:18]} 29. Nxc7 {[%clk 0:01:40]}  Qxc7 {[%clk 0:00:54]} 30. Rxf6 {[%clk 0:01:40]}  Ra1+ {[%clk 0:00:54]} 31. Rf1 {[%clk 0:01:37]}  Qa7 {[%clk 0:00:53]} 32. Qf2 {[%clk 0:01:10]}  Rxf1+ {[%clk 0:00:44]} 33. Qxf1 {[%clk 0:01:11]}  b5+ {[%clk 0:00:38]} 34. Qf2 {[%clk 0:00:56]}  Qa1+ {[%clk 0:00:38]} 35. Qe1 {[%clk 0:00:53]}  Qd4+ {[%clk 0:00:35]} 36. Qe3 {[%clk 0:00:46]}  bxc4 {[%clk 0:00:20]} 37. Qxd4 {[%clk 0:00:43]}  exd4 {[%clk 0:00:21]} 38. b5 {[%clk 0:00:40]}  Bc8 {[%clk 0:00:05]} 39. b6 {[%clk 0:00:39]}  Kf7 {[%clk 0:00:05]} 40. Kf2 {[%clk 0:00:39]}  Kf6 {[%clk 0:00:05]} 41. Kf3 {[%clk 0:00:18]}  g5 {[%clk 0:00:04]} 42. Ne1 {[%clk 0:00:17]}  Ke5 {[%clk 0:00:04]} 43. g4 {[%clk 0:00:15]}  d3 {[%clk 0:00:04]} 44. Ke3 {[%clk 0:00:16]}  Ba6 {[%clk 0:00:03]} 45. Nf3+ {[%clk 0:00:15]}  Kf6 {[%clk 0:00:03]} 46. Kd4 {[%clk 0:00:14]}  Ke7 {[%clk 0:00:01]} 47. Nd2 {[%clk 0:00:13]}  Kd7 {[%clk 0:00:01]} 48. Nb1 {[%clk 0:00:13]}  Kc8 {[%clk 0:00:00]} 49. e5 {[%clk 0:00:14]} 1-0


[Site "https://www.chess.com"]

[Event "Titled Tuesday Blitz August 22 Early 2023"]
[White "Zhao, Jun"]
[Black "Svane, Rasmus"]
[WhiteFideId "8602522"]
[BlackFideId "4657101"]
[WhiteElo "2714"]
[BlackElo "2978"]
[Result "0-1"]
[Round "3"]
[TimeControl "180+1"]
[Date "2023.08.22"]
[WhiteClock "0:00:00"]
[BlackClock "0:00:29"]
[Board "17"]

1. d4 {[%clk 0:03:00]}  d5 {[%clk 0:02:58]} 2. Nf3 {[%clk 0:03:00]}  e6 {[%clk 0:02:58]} 3. Bf4 {[%clk 0:03:00]}  Bd6 {[%clk 0:02:58]} 4. e3 {[%clk 0:03:00]}  Ne7 {[%clk 0:02:57]} 5. Nbd2 {[%clk 0:02:59]}  c5 {[%clk 0:02:57]} 6. c3 {[%clk 0:02:59]}  Nbc6 {[%clk 0:02:55]} 7. Bg3 {[%clk 0:02:54]}  Nf5 {[%clk 0:02:45]} 8. Bd3 {[%clk 0:02:53]}  Nxg3 {[%clk 0:02:44]} 9. hxg3 {[%clk 0:02:54]}  h6 {[%clk 0:02:44]} 10. Qe2 {[%clk 0:02:50]}  Qe7 {[%clk 0:02:41]} 11. dxc5 {[%clk 0:02:41]}  Bxc5 {[%clk 0:02:40]} 12. e4 {[%clk 0:02:41]}  d4 {[%clk 0:02:39]} 13. e5 {[%clk 0:02:25]}  dxc3 {[%clk 0:02:38]} 14. bxc3 {[%clk 0:02:26]}  Bd7 {[%clk 0:02:36]} 15. Ne4 {[%clk 0:02:23]}  Rc8 {[%clk 0:02:28]} 16. g4 {[%clk 0:02:16]}  Kd8 {[%clk 0:02:20]} 17. Rb1 {[%clk 0:02:10]}  Kc7 {[%clk 0:02:19]} 18. O-O {[%clk 0:02:09]}  f6 {[%clk 0:01:19]} 19. Rb5 {[%clk 0:02:07]}  Bb6 {[%clk 0:01:19]} 20. Rfb1 {[%clk 0:01:34]}  Nxe5 {[%clk 0:01:14]} 21. Nxe5 {[%clk 0:00:26]}  Bxb5 {[%clk 0:01:12]} 22. Rxb5 {[%clk 0:00:27]}  fxe5 {[%clk 0:01:11]} 23. a4 {[%clk 0:00:28]}  Qa3 {[%clk 0:00:56]} 24. a5 {[%clk 0:00:24]}  Bxa5 {[%clk 0:00:54]} 25. Nc5 {[%clk 0:00:24]}  Qxc3 {[%clk 0:00:30]} 26. Rxb7+ {[%clk 0:00:24]}  Kc6 {[%clk 0:00:29]} 27. Be4+ {[%clk 0:00:06]}  Kxc5 {[%clk 0:00:30]} 28. Qb5+ {[%clk 0:00:05]}  Kd4 {[%clk 0:00:29]} 29. Rd7+ {[%clk 0:00:01]}  Kxe4 {[%clk 0:00:29]} 30. Qe2+ {[%clk 0:00:01]}  Kf4 {[%clk 0:00:30]} 31. g3+ {[%clk 0:00:01]}  Kg5 {[%clk 0:00:28]} 32. Rxg7+ {[%clk 0:00:01]}  Kf6 {[%clk 0:00:29]} 33. Rxa7 {[%clk 0:00:01]}  Qe1+ {[%clk 0:00:28]} 34. Qxe1 {[%clk 0:00:00]}  Bxe1 {[%clk 0:00:29]} 0-1


[Site "https://www.chess.com"]

[Event "Titled Tuesday Blitz August 22 Early 2023"]
[White "GaiozNigalidze"]
[Black "Kovalenko, Igor"]
[BlackFideId "14117908"]
[WhiteElo "2691"]
[BlackElo "2946"]
[Result "1/2-1/2"]
[Round "3"]
[TimeControl "180+1"]
[Date "2023.08.22"]
[WhiteClock "0:00:13"]
[BlackClock "0:00:23"]
[Board "23"]

1. c4 {[%clk 0:03:00]}  e5 {[%clk 0:02:53]} 2. g3 {[%clk 0:03:00]}  c6 {[%clk 0:02:52]} 3. d4 {[%clk 0:02:56]}  e4 {[%clk 0:02:52]} 4. d5 {[%clk 0:02:56]}  Bb4+ {[%clk 0:02:52]} 5. Bd2 {[%clk 0:02:55]}  Qe7 {[%clk 0:02:52]} 6. Nc3 {[%clk 0:02:47]}  Nf6 {[%clk 0:02:52]} 7. a3 {[%clk 0:02:40]}  Ba5 {[%clk 0:02:45]} 8. Bg2 {[%clk 0:02:31]}  cxd5 {[%clk 0:02:45]} 9. Nxd5 {[%clk 0:02:20]}  Bxd2+ {[%clk 0:02:38]} 10. Qxd2 {[%clk 0:02:21]}  Nxd5 {[%clk 0:02:38]} 11. Qxd5 {[%clk 0:02:21]}  e3 {[%clk 0:02:37]} 12. f4 {[%clk 0:02:11]}  Nc6 {[%clk 0:02:32]} 13. Rd1 {[%clk 0:02:01]}  O-O {[%clk 0:02:32]} 14. Nf3 {[%clk 0:01:56]}  Qf6 {[%clk 0:02:25]} 15. Nd4 {[%clk 0:01:34]}  d6 {[%clk 0:02:22]} 16. O-O {[%clk 0:01:06]}  Bg4 {[%clk 0:02:21]} 17. Rfe1 {[%clk 0:01:03]}  Rac8 {[%clk 0:02:16]} 18. b3 {[%clk 0:00:55]}  Rfd8 {[%clk 0:01:54]} 19. Nb5 {[%clk 0:00:52]}  Qb2 {[%clk 0:01:42]} 20. Nxd6 {[%clk 0:00:48]}  Bxe2 {[%clk 0:01:35]} 21. Qxf7+ {[%clk 0:00:44]}  Kh8 {[%clk 0:01:35]} 22. Nxc8 {[%clk 0:00:41]}  Bxd1 {[%clk 0:01:32]} 23. Rxe3 {[%clk 0:00:38]}  Qd4 {[%clk 0:01:11]} 24. Qe6 {[%clk 0:00:37]}  Bg4 {[%clk 0:01:07]} 25. Qe4 {[%clk 0:00:24]}  Bxc8 {[%clk 0:01:01]} 26. Qxd4 {[%clk 0:00:23]}  Nxd4 {[%clk 0:01:02]} 27. b4 {[%clk 0:00:23]}  Kg8 {[%clk 0:01:00]} 28. Bd5+ {[%clk 0:00:22]}  Kf8 {[%clk 0:01:00]} 29. Kf2 {[%clk 0:00:21]}  Nf5 {[%clk 0:00:59]} 30. Re5 {[%clk 0:00:20]}  Ne7 {[%clk 0:01:00]} 31. Be4 {[%clk 0:00:20]}  g6 {[%clk 0:00:56]} 32. Ke3 {[%clk 0:00:18]}  b6 {[%clk 0:00:56]} 33. c5 {[%clk 0:00:18]}  bxc5 {[%clk 0:00:52]} 34. Rxc5 {[%clk 0:00:19]}  Bf5 {[%clk 0:00:51]} 35. Ra5 {[%clk 0:00:18]}  Rd7 {[%clk 0:00:49]} 36. Bxf5 {[%clk 0:00:17]}  Nxf5+ {[%clk 0:00:50]} 37. Ke4 {[%clk 0:00:18]}  Ke7 {[%clk 0:00:48]} 38. Ra6 {[%clk 0:00:18]}  Kd8 {[%clk 0:00:40]} 39. g4 {[%clk 0:00:18]}  Nd6+ {[%clk 0:00:40]} 40. Ke5 {[%clk 0:00:18]}  Nc4+ {[%clk 0:00:40]} 41. Kf6 {[%clk 0:00:18]}  Nb6 {[%clk 0:00:39]} 42. f5 {[%clk 0:00:18]}  gxf5 {[%clk 0:00:39]} 43. gxf5 {[%clk 0:00:19]}  Kc8 {[%clk 0:00:39]} 44. Ra5 {[%clk 0:00:18]}  Kd8 {[%clk 0:00:36]} 45. h4 {[%clk 0:00:18]}  Ke8 {[%clk 0:00:36]} 46. Kg5 {[%clk 0:00:18]}  Kf7 {[%clk 0:00:36]} 47. Rc5 {[%clk 0:00:18]}  Nd5 {[%clk 0:00:35]} 48. Rc6 {[%clk 0:00:18]}  Kg7 {[%clk 0:00:31]} 49. Ra6 {[%clk 0:00:17]}  Rf7 {[%clk 0:00:28]} 50. b5 {[%clk 0:00:17]}  Nf6 {[%clk 0:00:27]} 51. a4 {[%clk 0:00:18]}  h6+ {[%clk 0:00:27]} 52. Kf4 {[%clk 0:00:18]}  Rb7 {[%clk 0:00:26]} 53. Rd6 {[%clk 0:00:17]}  Re7 {[%clk 0:00:26]} 54. Re6 {[%clk 0:00:16]}  Rc7 {[%clk 0:00:25]} 55. Rc6 {[%clk 0:00:15]}  Re7 {[%clk 0:00:25]} 56. Re6 {[%clk 0:00:15]}  Rd7 {[%clk 0:00:26]} 57. Ra6 {[%clk 0:00:14]}  Re7 {[%clk 0:00:23]} 58. Re6 {[%clk 0:00:13]} 1/2-1/2


[Site "https://www.chess.com"]